bitfinex-derivatives/quotes_ETHF0:USTF0_20240920
["timestamp","ask_amount","ask_price","bid_price","bid_amount"]
[1726804717528,0.39856,2508.7,2507.8,3.2078]
[1726804717725,3.2078,2508.5,2507.8,3.2078]
[1726804718439,3.2078,2508.4,2507.8,3.2078]
[1726804718621,0.39859,2508.5,2507.8,3.2078]
[1726804718925,3.2078,2508.4,2507.8,3.2078]
[1726804719627,3.2078,2508.3,2507.6,3.83]
[1726804720326,3.2078,2508.3,2507.6,4.22872]
[1726804720528,0.4198,2508.4,2507.6,4.22872]
[1726804720529,3.6276,2508.4,2507.6,4.22872]
[1726804720730,0.8184,2508.4,2507.6,3.83]
[1726804720927,3.6276,2508.4,2507.6,3.83]
[1726804721127,0.4198,2508.4,2507.9,3.2078]
[1726804721327,3.2078,2508.8,2508.2,3.2078]
[1726804721529,3.2078,2508.8,2507.9,7.0378]
[1726804721530,0.06494733,2508.7,2507.9,7.0378]
[1726804721727,3.60634,2508.8,2507.9,7.0378]
[1726804721728,0.06494874,2508.6,2507.9,7.0378]
[1726804721933,3.60634,2508.8,2507.9,7.43647]
[1726804722231,0.0649482,2508.7,2507.9,7.43647]
[1726804722433,0.0649482,2508.7,2508.0,0.39866]
[1726804722630,0.0649482,2508.7,2507.9,7.43647]
[1726804723225,0.0649482,2508.7,2508.0,0.39866]
[1726804723630,0.0649482,2508.7,2508.0,0.39865]
[1726804723838,0.0649482,2508.7,2507.9,7.43647]
[1726804724135,0.0649482,2508.7,2508.2,3.2078]
[1726804724527,3.60634,2508.8,2508.2,3.2078]
[1726804724735,3.2078,2508.5,2507.6,7.0378]
[1726804725049,3.2078,2508.7,2507.8,0.39869]
[1726804725233,3.2078,2508.7,2507.7,4.2287]
[1726804725234,0.46351804,2508.6,2507.7,4.2287]
[1726804725540,3.2078,2508.4,2507.7,4.2287]
[1726804725837,0.06495424,2508.3,2507.7,3.83]
[1726804726038,3.2078,2508.4,2507.7,3.83]
[1726804726334,0.06495765,2508.3,2507.7,4.22871]
[1726804726531,3.27275765,2508.3,2507.7,3.83]
[1726804726730,3.2078,2508.3,2507.7,3.83]
[1726804727136,3.6064,2508.4,2507.7,3.83]
[1726804727330,0.06495774,2508.3,2507.7,3.83]
[1726804727531,0.06495774,2508.3,2507.7,4.22871]
[1726804727738,3.27275774,2508.3,2507.7,3.83]
[1726804727933,3.60642,2508.3,2507.7,3.83]
[1726804728140,0.46359063,2508.2,2507.6,3.2078]
[1726804728336,3.2078,2508.0,2507.6,3.2078]
[1726804728637,3.2078,2508.1,2507.6,3.2078]
[1726804728834,0.8682,2508.5,2507.6,7.0378]
[1726804729041,0.06495684,2508.4,2507.9,3.2078]
[1726804729631,3.2078,2508.3,2507.9,3.2078]
[1726804730136,0.3986,2508.4,2507.5,3.6452]
[1726804730338,3.2078,2508.2,2507.7,0.39869]
[1726804730529,3.2078,2508.3,2507.8,0.39869]
[1726804730729,3.2078,2508.3,2507.5,3.6452]
[1726804731538,3.60641,2508.3,2507.6,0.39871]
[1726804731835,0.8682,2508.5,2507.5,3.6452]
[1726804732143,3.2078,2508.3,2507.5,3.6452]
[1726804732436,3.2078,2508.3,2507.8,0.39869]
[1726804733642,3.2078,2508.3,2507.8,0.39868]
[1726804734040,0.39865,2508.1,2507.6,3.83]
[1726804734342,3.60642,2508.3,2507.7,0.3987]
[1726804734738,0.39863,2508.2,2507.7,0.3987]
[1726804734934,3.60642,2508.3,2507.7,0.3987]
[1726804735335,3.2078,2508.3,2507.8,0.39869]
[1726804735738,3.60641,2508.3,2507.8,0.39869]
[1726804735943,3.2078,2508.3,2507.8,0.39869]
[1726804736342,0.99623,2509.1,2507.8,0.39869]
[1726804736343,0.3985,2509.1,2508.2,7.43643]
[1726804736547,0.2,2510.0,2508.2,7.43643]
[1726804736548,0.4504,2509.9,2509.0,7.0378]
[1726804736741,0.4504,2509.9,2509.2,0.39847]
[1726804736937,0.4504,2509.9,2509.2,4.38407]
[1726804737748,0.84877,2509.9,2509.2,4.38407]
[1726804738149,0.4504,2509.9,2509.2,4.38407]
[1726804738446,0.84877,2509.9,2509.2,4.38407]
[1726804738947,0.4504,2509.9,2509.2,4.38407]
[1726804739141,0.84877,2509.9,2509.2,4.38407]
[1726804739742,0.39838,2509.8,2509.2,4.38407]
[1726804740042,3.9e-06,2509.3,2509.2,10.38407]
[1726804740246,3.9e-06,2509.3,2509.2,11.38025]
[1726804740544,3.9e-06,2509.3,2509.2,15.69097292]
[1726804740751,0.2,2510.0,2509.2,15.29250292]
[1726804740940,0.4452,2511.4,2509.9,7.0378]
[1726804741140,0.4452,2511.4,2509.7,3.83]
[1726804741141,3.2078,2512.8,2511.3,3.2078]
[1726804741462,0.00663848,2514.1,2510.9,3.83]
[1726804741463,0.00663848,2514.1,2512.9,3.2078]
[1726804741637,0.00663848,2514.1,2513.6,3.83]
[1726804741840,0.00663848,2514.1,2513.3,3.83]
[1726804742138,0.00663848,2514.1,2513.4,4.28050148]
[1726804742538,0.00663848,2514.1,2513.2,3.2078]
[1726804742539,0.40433848,2514.1,2513.2,3.2078]
[1726804742753,3.2078,2513.9,2513.2,3.2078]
[1726804743050,0.00663848,2514.1,2513.3,4.47729891]
[1726804743237,0.00663848,2514.1,2513.3,8.45569891]
[1726804743441,0.00663848,2514.1,2513.4,3.2078]
[1726804743648,0.00663848,2514.1,2513.4,7.1862]
[1726804743840,0.00663848,2514.1,2513.5,4.47729891]
[1726804744249,3.2078,2517.4,2517.3,0.39719]
[1726804744454,3.2078,2517.4,2516.0,3.8138]
[1726804744657,3.2078,2517.4,2515.2,7.318]
[1726804744658,3.2078,2517.4,2516.4,3.2078]
[1726804744851,3.2078,2517.4,2515.2,7.318]
[1726804744852,3.2078,2517.1,2516.1,3.2078]
[1726804745147,0.99279,2517.8,2516.1,3.2078]
[1726804745148,2.77202364,2517.5,2516.2,4.31464449]
[1726804745354,2.77202364,2517.5,2517.3,3.2078]
[1726804745545,0.39715,2517.5,2516.6,3.2078]
[1726804745746,3.2078,2517.6,2516.7,3.2078]
[1726804746058,0.39717,2517.5,2517.0,3.2078]
[1726804746350,3.2078,2518.0,2516.1,4.3]
[1726804746351,0.39708,2518.0,2517.4,3.2078]
[1726804746652,3.2078,2518.4,2517.7,3.2078]
[1726804746847,0.39693,2518.9,2518.2,3.2078]
[1726804747052,7.5078,2519.0,2518.5,3.2078]
[1726804747354,5.762,2523.1,2517.2,4.38495056]
[1726804747355,3.2078,2519.3,2518.8,3.2078]
[1726804747556,4.3,2519.8,2518.6,0.72446052]
[1726804747557,4.3,2519.1,2518.6,0.72446052]
[1726804747853,3.2078,2519.2,2518.4,3.2078]
[1726804748056,3.2078,2519.1,2518.4,3.2078]
[1726804748244,0.99216,2519.4,2518.4,7.67620235]
[1726804748441,0.39693,2519.0,2518.4,3.2078]
[1726804748648,7.5078,2519.6,2518.7,3.2078]
[1726804748958,0.39689,2519.2,2518.7,3.2078]
[1726804749152,3.2078,2518.9,2518.2,3.2078]
[1726804749548,3.2078,2519.5,2518.2,3.2078]
[1726804749744,3.2078,2519.2,2518.2,3.2078]
[1726804750048,3.2078,2518.5,2517.6,3.2078]
[1726804750248,4.3,2518.4,2517.6,3.2078]
[1726804750548,0.39698,2518.7,2517.9,3.2078]
[1726804750750,0.39697,2518.7,2517.9,3.2078]
[1726804750953,0.397,2518.6,2517.9,3.2078]
[1726804751153,4.69699,2518.6,2517.9,3.2078]
[1726804751356,3.2078,2519.9,2518.4,3.2078]
[1726804751560,3.2078,2519.6,2518.4,3.2078]
[1726804751851,2.75520357,2519.7,2519.0,3.2078]
[1726804752050,3.2078,2519.8,2519.4,3.2078]
[1726804752251,4.3,2519.7,2519.0,3.2078]
[1726804752455,3.2078,2519.8,2519.0,3.2078]
[1726804752751,0.3969,2519.1,2519.0,3.2078]
[1726804752952,7.835,2519.9,2519.1,4.42452302]
[1726804752953,3.2078,2519.9,2519.1,4.42452302]
[1726804753148,3.20462,2519.9,2519.2,3.2078]
[1726804753348,2.82462,2519.9,2519.2,3.2078]
[1726804753560,0.39682,2519.7,2519.3,4.16607617]
[1726804753756,0.39686,2519.4,2519.3,4.16607617]
[1726804753956,4.3,2519.8,2519.2,3.2078]
[1726804754151,2.82462,2519.9,2519.2,3.2078]
[1726804754349,0.2,2520.0,2519.1,3.2078]
[1726804754560,0.2,2520.0,2519.0,3.2078]
[1726804754748,0.2,2520.0,2517.4,0.19934927]
[1726804754749,4.3,2519.1,2518.4,3.2078]
[1726804755055,4.3,2519.1,2518.0,3.2078]
[1726804755251,4.3,2519.1,2517.8,3.2078]
[1726804755252,0.39697,2518.7,2517.8,3.2078]
[1726804755451,4.3,2518.9,2517.8,3.2078]
[1726804755851,7.5078,2518.9,2517.9,4.36588671]
[1726804756046,7.5078,2518.9,2517.8,3.2078]
[1726804756262,0.39695,2518.8,2518.1,3.2078]
[1726804756460,3.2078,2519.2,2518.4,3.2078]
[1726804756756,0.39689,2519.2,2518.9,3.2078]
[1726804757057,3.2078,2519.8,2518.5,12.84003696]
[1726804757257,0.2,2520.0,2518.9,3.2078]
[1726804757258,0.3969,2519.2,2518.9,3.2078]
[1726804757461,0.39693,2519.0,2518.4,3.2078]
[1726804757759,3.2078,2519.5,2518.4,3.2078]
[1726804757958,3.2078,2519.8,2518.4,3.2078]
[1726804758358,3.2078,2519.8,2518.0,4.3]
[1726804758359,0.39687,2519.4,2518.7,3.2078]
[1726804758565,0.39686,2519.4,2518.7,3.2078]
[1726804758768,3.2078,2519.5,2518.4,3.2078]
[1726804758967,0.39686,2519.4,2518.4,3.2078]
[1726804759157,3.2078,2519.8,2519.0,3.2078]
[1726804759461,3.2078,2519.8,2518.5,4.58309638]
[1726804759462,0.2,2520.0,2519.6,3.2078]
[1726804759656,0.2,2520.0,2519.9,3.2078]
[1726804759964,0.2,2520.0,2518.6,4.3941]
[1726804759965,0.2,2520.0,2519.6,3.2078]
[1726804761255,0.2,2520.0,2519.0,4.3]
[1726804761256,0.2,2520.0,2519.9,3.2078]
[1726804761556,0.2,2520.0,2519.5,3.2078]
[1726804761966,0.59677,2520.0,2519.5,3.2078]
[1726804762155,0.2,2520.0,2519.8,3.2078]
[1726804762462,0.2,2520.0,2519.5,3.2078]
[1726804762854,0.99141,2521.3,2519.9,7.5078]
[1726804762855,3.0078,2521.3,2519.9,7.5078]
[1726804763056,3.0078,2521.3,2520.7,3.2078]
[1726804763362,3.0078,2521.3,2520.4,3.2078]
[1726804763662,3.0078,2521.3,2520.7,3.2078]
[1726804763855,0.39666,2520.7,2520.3,4.28656486]
[1726804764057,0.99144,2521.2,2520.2,3.2078]
[1726804764360,3.2078,2521.6,2520.4,8.71032854]
[1726804764561,0.39657,2521.3,2521.1,3.2078]
[1726804764859,3.2078,2521.7,2521.0,3.2078]
[1726804765064,3.2078,2521.7,2520.4,7.5078]
[1726804765259,0.99124,2521.7,2521.0,3.2078]
[1726804765657,0.99124,2521.7,2520.7,3.2078]
[1726804765658,3.2078,2521.4,2520.7,3.2078]
[1726804765857,0.39662,2521.0,2520.7,3.2078]
[1726804766156,0.39662,2521.0,2519.8,0.20288082]
[1726804766157,3.2078,2521.1,2520.3,3.2078]
[1726804766360,3.2078,2520.8,2519.8,0.20288082]
[1726804766559,3.2078,2520.5,2519.7,3.2078]
[1726804766765,0.99175,2520.4,2519.7,3.2078]
[1726804766959,0.99191,2520.1,2519.1,3.2078]
[1726804767156,0.99187,2520.1,2519.0,3.2078]
[1726804767462,3.2078,2520.2,2519.0,7.80615554]
[1726804767763,3.2078,2519.9,2519.0,3.2078]
[1726804767959,1.42716,2520.4,2519.0,3.2078]
[1726804767960,3.2078,2519.7,2519.0,3.2078]
[1726804768165,0.3969,2519.1,2519.0,3.2078]
[1726804768357,0.3969,2519.1,2518.7,4.0148]
[1726804768552,0.99222,2519.2,2518.7,3.2078]
[1726804768862,3.2078,2519.3,2518.2,3.2078]
[1726804769555,0.39693,2519.0,2518.2,3.2078]
[1726804769753,0.99223,2519.2,2518.2,3.2078]
[1726804769966,0.39698,2518.7,2518.5,3.2078]
[1726804770157,0.99226,2519.1,2518.5,3.2078]
[1726804770356,3.2078,2519.0,2518.5,3.2078]
[1726804770656,0.4473,2519.3,2518.8,3.2078]
[1726804770657,3.6551,2519.3,2518.8,3.2078]
[1726804770853,0.39693,2518.9,2518.8,3.2078]
[1726804771065,3.6551,2519.3,2518.8,3.2078]
[1726804771267,0.39693,2519.0,2518.8,3.2078]
[1726804771563,0.39694,2518.9,2518.4,3.2078]
[1726804771768,0.4473,2519.3,2518.4,3.2078]
[1726804772058,0.4473,2519.3,2518.7,3.2078]
[1726804772264,0.4473,2519.3,2518.4,3.2078]
[1726804772460,0.4473,2519.3,2518.4,3.6048]
[1726804772670,0.4473,2519.3,2518.5,4.49821184]
[1726804772960,0.99226,2519.1,2518.3,3.2078]
[1726804773164,3.2078,2519.2,2518.3,3.2078]
[1726804773356,0.4473,2519.3,2518.3,3.2078]
[1726804773555,0.39696,2518.8,2518.3,3.2078]
[1726804773760,0.39693,2519.0,2518.3,3.2078]
[1726804773967,0.39685,2519.5,2518.9,7.5078]
[1726804774155,1.98294,2521.2,2518.9,7.5078]
[1726804774156,3.2078,2520.0,2519.4,3.2078]
[1726804774358,4.0774,2520.6,2519.4,3.2078]
[1726804774558,5.76808,2520.6,2519.4,3.2078]
[1726804774759,0.39681,2519.8,2519.4,3.2078]
[1726804774954,0.39681,2519.8,2518.9,4.3]
[1726804774955,3.2078,2520.3,2519.1,3.2078]
[1726804775159,3.2078,2519.9,2519.1,3.2078]
[1726804775354,0.99187,2520.1,2519.1,3.2078]
[1726804775355,0.3969,2519.2,2519.1,3.2078]
[1726804775566,0.3969,2519.2,2518.8,3.2078]
[1726804775761,0.99195,2519.9,2519.1,3.2078]
[1726804775965,0.699,2520.1,2519.1,3.2078]
[1726804776270,0.39679,2519.9,2519.4,3.2078]
[1726804776468,0.39677,2520.0,2519.4,3.2078]
[1726804776762,0.699,2520.1,2518.9,4.3]
[1726804776763,1.09576,2520.1,2519.7,3.2078]
[1726804776983,0.699,2520.1,2520.0,3.2078]
[1726804777157,0.699,2520.2,2520.0,13.5078]
[1726804777358,0.699,2520.2,2520.1,7.57255]
[1726804777567,3.2078,2520.8,2520.1,13.1758]
[1726804777568,0.699,2520.7,2520.1,13.1758]
[1726804777766,0.699,2520.7,2520.1,3.2078]
[1726804777970,0.99169,2520.6,2520.1,3.2078]
[1726804778170,0.699,2520.7,2520.1,3.2078]
[1726804778171,0.39669,2520.5,2520.1,3.2078]
[1726804778477,0.39669,2520.5,2519.8,0.39679]
[1726804778478,0.699,2520.7,2519.9,3.2078]
[1726804778867,0.3967,2520.5,2519.8,3.60459]
[1726804779068,0.699,2520.7,2519.7,4.3]
[1726804779069,0.39667,2520.6,2520.3,3.2078]
[1726804779370,0.699,2520.7,2520.3,3.2078]
[1726804779768,11.06285,2520.7,2520.6,2.23463]
[1726804779958,0.699,2520.7,2520.6,1.78263]
[1726804780161,0.699,2521.4,2520.6,1.78263]
[1726804780361,0.39654,2521.4,2521.3,3.2078]
[1726804780668,0.699,2521.5,2521.3,3.2078]
[1726804780856,3.9664,2521.4,2521.3,3.2078]
[1726804781062,0.699,2521.5,2521.3,3.2078]
[1726804781958,3.9664,2521.4,2521.3,3.2078]
[1726804782467,9.9664,2521.4,2521.3,3.2078]
[1726804782662,1.09553,2521.5,2521.3,3.2078]
[1726804782856,0.699,2521.5,2521.3,3.2078]
[1726804785165,4.6654,2521.5,2521.3,3.2078]
[1726804785372,0.699,2521.5,2521.3,3.2078]
[1726804786773,0.699,2521.7,2521.3,3.2078]
[1726804786976,0.699,2521.7,2521.6,3.2078]
[1726804787364,4.6646,2521.7,2521.6,3.2078]
[1726804787665,11.06109,2521.7,2521.6,3.2078]
[1726804787861,11.06109,2521.7,2521.6,1.8122]
[1726804788062,12.05233,2521.7,2521.6,1.1144]
[1726804788271,51.86109,2521.7,2521.6,1.1144]
[1726804788465,11.06109,2521.7,2521.6,1.1144]
[1726804788660,0.39654,2521.4,2521.3,3.2078]
[1726804789059,3.9664,2521.4,2521.3,3.2078]
[1726804789369,0.699,2521.7,2521.3,3.2078]
[1726804789568,0.39654,2521.4,2521.3,3.2078]
[1726804789972,0.39661,2521.0,2520.4,3.2078]
[1726804790166,0.4592,2521.3,2520.4,3.2078]
[1726804790365,3.2078,2521.2,2520.0,3.2078]
[1726804790574,0.4592,2521.3,2520.0,3.2078]
[1726804790771,0.4592,2521.3,2520.1,0.39674]
[1726804791071,0.39661,2521.0,2520.3,3.2078]
[1726804791372,0.39662,2520.9,2520.3,3.2078]
[1726804791563,0.39661,2521.0,2520.3,3.2078]
[1726804791765,3.2078,2521.2,2520.3,3.2078]
[1726804791966,0.4592,2521.3,2520.6,3.2078]
[1726804792668,3.2078,2521.6,2520.9,3.2078]
[1726804793265,0.39653,2521.5,2520.9,3.2078]
[1726804793481,0.39654,2521.5,2520.9,3.2078]
[1726804793674,3.2078,2521.6,2520.9,3.2078]
[1726804793973,0.39653,2521.5,2520.9,3.2078]
[1726804794276,3.2078,2521.6,2520.9,3.2078]
[1726804794474,1.96861828,2521.8,2521.3,3.2078]
[1726804794777,1.96861828,2521.8,2521.0,3.2078]
[1726804794976,1.96861828,2521.8,2521.1,0.39659]
[1726804795180,1.96861828,2521.8,2521.2,0.39657]
[1726804795868,1.96861828,2521.8,2521.3,3.2078]
[1726804796066,1.96861828,2521.8,2521.3,0.39655]
[1726804796262,1.96861828,2521.8,2521.2,0.39657]
[1726804796461,1.96861828,2521.8,2521.3,3.2078]
[1726804796669,3.2078,2524.2,2521.9,3.2078]
[1726804796878,3.2078,2524.2,2523.1,3.2078]
[1726804797182,0.20213264,2525.2,2522.8,3.2078]
[1726804797183,3.2078,2523.8,2522.8,3.2078]
[1726804797473,4.1982,2523.9,2522.8,3.2078]
[1726804797664,3.2078,2523.8,2522.9,4.15669743]
[1726804797872,3.60402,2523.5,2522.8,3.2078]
[1726804798073,0.39623,2523.4,2522.8,3.2078]
[1726804798274,0.39622,2523.5,2522.9,7.58851687]
[1726804798579,3.2078,2523.6,2522.6,3.2078]
[1726804798961,3.2078,2523.6,2521.6,0.4489]
[1726804798962,3.2078,2522.9,2522.0,3.2078]
[1726804799167,0.99053,2523.5,2522.0,3.2078]
[1726804799168,0.39632,2522.8,2522.0,3.2078]
[1726804799372,0.99069,2523.1,2522.1,4.58760984]
[1726804799570,4.19847,2523.2,2522.0,3.2078]
[1726804799874,3.2078,2523.2,2522.0,3.2078]
[1726804800071,3.2078,2523.2,2521.8,4.3]
[1726804800072,0.39635,2522.7,2522.4,3.2078]
[1726804800276,0.39635,2522.7,2521.9,0.39646]
[1726804800277,0.39638,2522.5,2521.9,3.2078]
[1726804800574,0.99075,2523.0,2521.6,0.4489]
[1726804800575,3.60419,2522.4,2521.6,0.3965]
[1726804800772,3.2078,2522.4,2521.4,0.4185]
[1726804800984,3.2078,2522.4,2521.4,4.7185]
[1726804801176,3.2078,2522.4,2521.6,3.6043]
[1726804801376,0.39644,2522.1,2521.6,3.2078]
[1726804801580,3.2078,2522.4,2521.6,3.2078]
[1726804801778,0.39648,2521.8,2521.6,3.2078]
[1726804802080,3.2078,2522.1,2521.2,3.2078]
[1726804802277,12.8368,2522.4,2521.2,3.2078]
[1726804802476,0.39649,2521.8,2521.2,3.2078]
[1726804802778,11.8458,2522.4,2521.2,3.2078]
[1726804803279,8.638,2522.4,2521.3,4.18395742]
[1726804803473,3.2078,2523.4,2522.3,7.5078]
[1726804803671,3.2078,2523.8,2522.9,4.3]
[1726804803875,3.2078,2523.5,2522.5,7.5078]
[1726804804077,3.2078,2523.2,2522.1,7.5078]
[1726804804279,3.2078,2523.2,2522.4,3.2078]
[1726804804583,3.2078,2523.0,2522.2,4.40695882]
[1726804804773,3.2078,2523.1,2522.1,3.2078]
[1726804805081,3.2078,2523.1,2522.1,7.75179419]
[1726804805376,3.2078,2523.1,2522.3,3.2078]
[1726804805574,3.2078,2523.1,2521.9,3.2078]
[1726804805968,3.2078,2523.1,2522.1,8.62531873]
[1726804806174,3.2078,2523.1,2522.2,3.2078]
[1726804806479,3.2078,2523.1,2522.2,7.69552192]
[1726804806783,3.2078,2523.1,2522.2,3.2078]
[1726804807274,3.2078,2523.1,2521.4,0.4353]
[1726804807275,3.2078,2522.8,2521.8,3.2078]
[1726804807471,0.39635,2522.7,2521.9,0.39645]
[1726804807676,3.2078,2522.5,2521.9,4.38519759]
[1726804807874,3.2078,2522.5,2521.3,4.3]
[1726804807875,0.39649,2521.8,2521.3,4.3]
[1726804808172,3.2078,2522.1,2521.2,3.2078]
[1726804808372,3.2078,2522.1,2520.9,4.3]
[1726804808373,3.2078,2521.5,2520.9,3.2078]
[1726804808678,0.3966,2521.1,2520.6,3.2078]
[1726804808875,3.2078,2520.7,2520.0,3.2078]
[1726804809269,0.39667,2520.6,2520.0,3.2078]
[1726804809473,3.2078,2520.7,2520.0,3.60455]
[1726804809675,0.39663,2520.9,2520.3,3.2078]
[1726804809879,3.2078,2521.1,2520.3,3.2078]
[1726804810079,4.06086,2521.4,2520.8,3.2078]
[1726804810284,3.6643,2521.4,2520.8,3.2078]
[1726804810484,3.2078,2521.7,2520.8,3.2078]
[1726804810871,0.39657,2521.3,2520.8,3.2078]
[1726804811081,0.39666,2520.7,2520.5,3.2078]
[1726804811274,0.39666,2520.7,2520.0,4.3]
[1726804811475,3.2078,2520.8,2520.0,4.3]
[1726804811781,0.39674,2520.2,2519.9,3.2078]
[1726804812084,3.2078,2520.3,2519.5,3.2078]
[1726804812280,3.2078,2520.2,2519.5,3.2078]
[1726804812485,0.39682,2519.6,2519.5,3.2078]
[1726804812670,3.2078,2520.0,2519.1,3.2078]
[1726804813076,3.2078,2519.8,2519.1,3.2078]
[1726804813377,3.2078,2520.3,2519.5,3.2078]
[1726804813575,0.39674,2520.2,2519.5,3.2078]
[1726804813776,3.2078,2520.3,2519.5,3.2078]
[1726804814480,0.39676,2520.1,2519.5,3.2078]
[1726804814686,3.2078,2520.3,2519.3,4.3]
[1726804814879,0.39684,2519.6,2519.2,3.2078]
[1726804815180,0.4582,2521.0,2519.2,3.2078]
[1726804815181,3.2078,2519.7,2519.2,3.2078]
[1726804815387,3.2078,2519.3,2518.5,3.2078]
[1726804815688,1.98329,2520.7,2519.4,0.39685]
[1726804815689,6.02273128,2520.6,2519.4,0.39685]
[1726804815874,6.02273128,2520.6,2519.3,4.56953463]
[1726804815875,3.2078,2520.2,2519.6,7.5078]
[1726804816074,0.39679,2519.9,2519.2,7.5078]
[1726804816279,3.2078,2520.1,2519.2,7.5078]
[1726804816484,3.2078,2519.7,2519.2,3.2078]
[1726804816689,0.39681,2519.7,2519.2,3.2078]
[1726804816977,0.39677,2520.0,2519.2,7.90468]
[1726804817182,3.2078,2520.2,2519.2,7.5078]
[1726804817383,0.3968,2519.8,2519.2,7.5078]
[1726804817582,3.2078,2520.2,2519.2,7.5078]
[1726804817790,0.99173,2520.5,2519.2,7.90468]
[1726804817982,3.2078,2520.6,2519.6,4.3]
[1726804818286,3.2078,2520.3,2519.2,7.5078]
[1726804818581,0.39679,2519.9,2519.2,7.5078]
[1726804818785,3.2078,2520.1,2519.3,0.39686]
[1726804818983,3.2078,2520.1,2519.2,7.5078]
[1726804819189,0.3968,2519.8,2519.2,3.2078]
[1726804819386,3.2078,2519.9,2519.3,4.3]
[1726804819579,3.60459,2519.9,2519.3,4.3]
[1726804819783,0.39681,2519.7,2519.3,4.3]
[1726804820093,3.2078,2519.6,2518.5,4.3]
[1726804820291,3.60468,2519.3,2518.6,0.39698]
[1726804820484,3.6462,2520.1,2518.9,4.3]
[1726804820678,3.6462,2520.1,2519.0,3.2078]
[1726804820881,3.2078,2519.8,2518.9,4.3]
[1726804821086,3.2078,2519.5,2518.8,3.2078]
[1726804821281,3.2078,2520.0,2519.1,3.2078]
[1726804821782,3.2078,2519.9,2519.1,3.2078]
[1726804822489,0.39683,2519.6,2519.1,3.2078]
[1726804822690,0.39682,2519.7,2519.0,4.69691]
[1726804822892,3.2078,2519.9,2519.0,4.3]
[1726804823087,3.2078,2519.6,2519.0,4.69691]
[1726804823278,0.4384,2520.1,2519.5,3.2078]
[1726804823279,3.2078,2520.1,2519.5,3.2078]
[1726804823887,0.39677,2520.0,2519.5,3.2078]
[1726804824093,3.2078,2520.5,2519.6,3.2078]
[1726804824282,3.2078,2520.5,2519.7,4.3]
[1726804824688,3.2078,2520.2,2519.7,4.3]
[1726804824887,3.2078,2520.2,2519.5,3.2078]
[1726804825392,3.2078,2520.2,2519.3,4.3]
[1726804825393,3.2078,2520.1,2519.3,4.3]
[1726804825595,3.2078,2520.6,2519.9,3.2078]
[1726804825789,3.60435,2521.4,2520.4,4.3]
[1726804825991,3.2078,2521.0,2520.4,4.3]
[1726804826287,0.4449,2521.8,2520.3,3.2078]
[1726804826288,0.39663,2520.8,2520.3,3.2078]
[1726804826492,3.2078,2520.9,2520.3,3.2078]
[1726804826790,0.39667,2520.7,2520.3,3.2078]
[1726804826991,0.39666,2520.7,2520.3,3.2078]
[1726804827196,3.2078,2521.1,2520.4,8.2672]
[1726804827488,0.39656,2521.3,2520.7,0.39665]
[1726804827692,4.19908,2521.6,2520.6,3.60446]
[1726804827890,4.19908,2521.6,2520.6,3.2078]
[1726804828088,3.2078,2521.3,2520.6,3.2078]
[1726804828399,3.2078,2521.6,2520.9,3.2078]
[1726804828696,0.39656,2521.3,2520.9,3.2078]
[1726804828995,0.39657,2521.3,2520.9,3.2078]
[1726804829491,0.39662,2521.0,2520.6,3.2078]
[1726804829793,0.99125,2521.7,2519.4,0.99211]
[1726804829794,0.39664,2520.8,2520.1,7.90453]
[1726804829984,3.2078,2521.2,2520.2,0.39672]
[1726804830185,0.3966,2521.1,2520.4,7.9045]
[1726804830388,3.2078,2521.2,2520.4,7.5078]
[1726804830598,0.3966,2521.1,2520.4,7.9045]
[1726804830787,0.39659,2521.1,2520.5,0.39668]
[1726804831002,3.2078,2521.2,2520.5,0.39667]
[1726804831195,3.6527,2521.8,2520.9,3.2078]
[1726804831497,0.99124,2521.7,2520.9,3.2078]
[1726804831796,0.3966,2521.0,2520.9,3.2078]
[1726804831992,3.2078,2521.2,2520.5,3.2078]
[1726804832194,0.99136,2521.4,2520.5,3.2078]
[1726804832195,3.2078,2521.1,2520.5,3.2078]
[1726804832792,0.39666,2520.7,2520.5,3.2078]
[1726804832996,3.2078,2521.1,2520.5,3.2078]
[1726804833300,0.39673,2520.2,2519.7,3.2078]
[1726804833490,0.39673,2520.2,2518.8,0.99235]
[1726804833491,0.39682,2519.7,2519.3,3.2078]
[1726804833791,3.2078,2520.1,2519.3,3.2078]
[1726804833792,0.3968,2519.8,2519.3,3.2078]
[1726804833994,3.2078,2520.1,2519.3,3.2078]
[1726804833995,0.99191,2520.0,2519.3,3.2078]
[1726804834185,3.2078,2519.5,2518.9,3.2078]
[1726804834387,3.2078,2519.5,2518.5,3.2078]
[1726804834586,0.99199,2519.8,2518.5,3.2078]
[1726804834587,0.3969,2519.1,2518.5,3.2078]
[1726804834786,3.60469,2519.2,2518.5,3.2078]
[1726804834991,0.39691,2519.1,2518.5,3.2078]
[1726804835192,3.6047,2519.2,2518.5,3.2078]
[1726804835397,3.2078,2518.8,2518.5,0.39699]
[1726804835588,0.39688,2519.3,2518.5,3.2078]
[1726804835788,3.2078,2519.6,2518.5,3.2078]
[1726804835789,0.39686,2519.4,2518.5,3.2078]
[1726804835994,3.6419,2519.9,2519.1,3.2078]
[1726804836196,3.6419,2519.9,2518.7,7.5078]
[1726804836398,3.6419,2519.9,2519.0,3.2078]
[1726804836601,3.2078,2519.9,2519.4,3.2078]
[1726804836904,0.39688,2519.3,2519.0,3.2078]
[1726804837395,0.39688,2519.3,2518.7,0.39697]